bitfinex/quotes_ETHUSD_20251212
["timestamp","ask_amount","ask_price","bid_price","bid_amount"]
[1765545883933,6.63908884,3250.4,3250.0,0.4651]
[1765545884131,3.56254442,3250.4,3250.0,0.4651]
[1765545885527,0.486,3250.4,3250.3,0.478]
[1765545888108,3.56254442,3250.4,3250.3,0.478]
[1765545892863,0.486,3250.5,3250.3,0.478]
[1765545893098,0.486,3250.5,3250.4,0.478]
[1765545893626,0.7447,3250.5,3250.1,0.1957]
[1765545893923,0.7447,3250.5,3250.1,0.6608]
[1765545894348,0.2587,3250.5,3250.1,0.6608]
[1765545894555,0.2587,3250.5,3250.2,0.4651]
[1765545894736,3.07654442,3250.4,3250.1,0.1957]
[1765545894936,6.15308884,3250.4,3249.9,5.68171474]
[1765545895137,0.2587,3250.0,3249.9,0.001]
[1765545895651,0.7337,3250.0,3249.9,0.001]
[1765545896058,0.7644978,3250.0,3249.9,0.001]
[1765545896254,0.7337,3250.0,3249.9,0.001]
[1765545896829,3.81062307,3250.0,3249.9,0.001]
[1765545897032,4.54796827,3250.0,3249.9,0.001]
[1765545897973,4.57876607,3250.0,3249.9,0.001]
[1765545901073,4.54796827,3250.0,3249.9,0.001]
[1765545901950,0.4772,3250.5,3249.9,0.9441]
[1765545902138,3.07628841,3250.7,3250.0,0.478]
[1765545902333,0.58047529,3250.6,3250.0,0.478]
[1765545902563,0.486,3250.5,3250.0,0.9431]
[1765545903471,3.07654442,3250.4,3250.0,0.478]
[1765545903640,3.07654442,3250.4,3250.1,0.4651]
[1765545903840,6.15308884,3250.4,3250.0,0.478]
[1765545904075,6.15308884,3250.4,3250.0,0.9431]
[1765545905269,6.15308884,3250.4,3250.0,0.478]
[1765545905444,6.15308884,3250.4,3250.1,0.4651]
[1765545906383,3.07654442,3250.4,3250.1,0.4651]
[1765545907182,3.07654442,3250.4,3250.3,0.478]
[1765545907686,3.07654442,3250.4,3250.3,0.9392]
[1765545907990,6.15233172,3250.8,3250.3,0.9392]
[1765545908150,0.486,3250.5,3250.3,0.9392]
[1765545908570,0.486,3250.5,3250.4,0.4524]
[1765545909975,0.0936,3250.9,3250.4,0.9136]
[1765545909976,3.07611258,3250.9,3250.4,0.9136]
[1765545910179,0.486,3250.8,3250.7,0.4524]
[1765545910480,0.486,3250.8,3250.4,5.68071474]
[1765545910683,0.486,3250.8,3250.7,0.9136]
[1765545911085,0.6551,3250.8,3250.4,0.4612]
[1765545911690,0.472,3250.5,3250.1,0.1957]
[1765545911981,0.6442,3250.5,3249.9,0.4622]
[1765545912172,3.07654442,3250.4,3249.9,1.52541882]
[1765545912777,3.07654442,3250.4,3249.9,1.06421882]
[1765545912949,3.55154442,3250.4,3249.9,1.52541882]
[1765545913876,0.475,3250.3,3249.9,0.001]
[1765545914057,3.55169473,3250.3,3249.9,0.001]
[1765545914264,3.07669473,3250.3,3249.9,0.4622]
[1765545915992,3.56259261,3250.4,3249.9,0.4622]
[1765545916288,0.486,3250.4,3250.3,0.4524]
[1765545916660,0.486,3250.4,3250.3,0.9136]
[1765545917174,0.486,3250.5,3250.3,0.9136]
[1765545917372,3.07635513,3250.6,3250.4,0.4992]
[1765545917373,3.56235513,3250.6,3250.4,0.4992]
[1765545917680,3.07607124,3250.9,3250.5,0.4577]
[1765545917882,0.486,3250.8,3250.7,0.4577]
[1765545918385,7.27933172,3250.8,3250.2,0.1859]
[1765545918564,0.4692,3250.5,3250.0,5.68103349]
[1765545918888,0.4692,3250.5,3250.0,6.18023349]
[1765545919182,0.4692,3250.5,3250.1,0.4992]
[1765545919558,0.1749,3250.7,3250.1,0.4992]
[1765545920387,3.07635513,3250.6,3250.1,0.4992]
[1765545921386,3.25120212,3250.7,3250.1,0.4992]
[1765545921586,0.486,3250.7,3250.6,0.4577]
[1765545921891,0.486,3250.7,3250.6,0.9569]
[1765545922491,0.486,3250.8,3250.6,0.9569]
[1765545922987,0.486,3250.8,3250.7,0.4577]
[1765545924386,3.56216586,3250.8,3250.7,0.4577]
[1765545925268,0.486,3250.8,3250.7,0.4577]
[1765545925474,0.486,3250.8,3250.7,0.9569]
[1765545925896,3.075882,3251.1,3250.7,0.4577]
[1765545926076,6.1511964,3251.4,3251.0,0.4577]
[1765545926259,0.68203964,3251.3,3251.0,0.4577]
[1765545926464,3.56186727,3251.2,3251.0,0.9569]
[1765545926991,0.486,3251.2,3251.1,0.4577]
[1765545927360,3.07576582,3251.3,3251.1,0.4577]
[1765545927695,0.486,3251.4,3251.2,0.4577]
[1765545928464,0.486,3251.4,3251.3,0.4577]
[1765545928693,0.002,3251.7,3251.3,0.4577]
[1765545928864,0.002,3251.7,3251.6,0.4577]
[1765545931681,0.1633,3251.7,3251.0,0.92359271]
[1765545931886,0.1633,3251.7,3250.9,3.07603833]
[1765545931887,0.4692,3251.5,3250.9,3.07603833]
[1765545932191,0.486,3251.4,3251.0,0.4992]
[1765545932568,3.07569279,3251.3,3251.0,0.4992]
[1765545936805,3.07569279,3251.3,3250.7,3.26712899]
[1765545937110,3.07569279,3251.3,3250.8,0.4992]
[1765545938133,3.56164041,3251.4,3250.8,3.57530715]
[1765545938307,0.486,3251.4,3250.9,3.07604109]
[1765545938498,3.56162456,3251.4,3250.9,0.4996]
[1765545943216,0.4516,3251.3,3250.7,0.1909]
[1765545943411,0.1862,3251.0,3250.6,3.57593463]
[1765545943811,0.1862,3251.0,3250.7,0.4996]
[1765545944120,0.6352,3251.0,3250.5,0.486]
[1765545944299,6.78716954,3251.0,3250.4,0.1862]
[1765545944616,0.644,3250.9,3250.3,0.92375197]
[1765545944920,0.644,3250.9,3250.3,3.0765987]
[1765545945218,0.4516,3250.8,3250.2,3.07667061]
[1765545945662,0.4516,3250.8,3250.1,3.57639934]
[1765545945824,3.07626049,3250.7,3250.1,0.4996]
[1765545946121,6.60412098,3250.7,3250.0,6.1796515]
[1765545946324,0.9376,3250.6,3249.9,3.26887422]
[1765545946523,0.9376,3250.6,3249.9,0.1919]
[1765545946725,0.4516,3250.5,3249.9,0.1919]
[1765545947026,0.4516,3250.5,3249.9,0.6915]
[1765545947226,0.4516,3250.5,3249.9,4.37145608]
[1765545947821,3.07644977,3250.5,3250.0,0.4996]
[1765545948631,3.52804977,3250.5,3250.0,0.4996]
[1765545949630,0.1863,3250.1,3249.9,0.001]
[1765545949931,0.6749,3250.0,3249.9,0.001]
[1765545950292,0.58047529,3250.2,3249.9,0.4782]
[1765545950631,0.486,3250.1,3249.9,0.4782]
[1765545951493,0.1863,3250.0,3249.9,0.001]
[1765545952126,3.26322307,3250.0,3249.9,0.001]
[1765545952506,0.1863,3250.0,3249.9,0.001]
[1765545952717,3.07692307,3250.0,3249.9,0.4782]
[1765545954324,0.449,3250.4,3249.9,0.4782]
[1765545954498,0.486,3250.3,3250.0,0.4772]
[1765545954911,0.486,3250.3,3250.0,0.9768]
[1765545956227,3.07673373,3250.2,3250.0,0.9768]
[1765545956427,3.07673373,3250.2,3250.0,0.4772]
[1765545956928,3.07673373,3250.2,3250.1,0.4772]
[1765545958631,3.26303373,3250.2,3249.9,0.001]
[1765545959014,6.33976746,3250.2,3249.9,0.001]
[1765545959729,3.26303373,3250.2,3249.9,0.001]
[1765545959906,3.26303373,3250.2,3249.9,0.5006]
[1765545960230,3.26303373,3250.2,3249.9,0.001]
[1765545960634,3.07673373,3250.2,3249.9,0.5006]
[1765545960833,3.07673373,3250.2,3250.1,0.4772]
[1765545961040,3.07639175,3250.6,3250.1,0.4772]
[1765545961332,0.486,3250.5,3250.2,0.4772]
[1765545961505,0.9376,3250.5,3249.9,0.001]
[1765545961698,0.9376,3250.5,3249.9,0.5006]
[1765545962337,0.486,3250.5,3249.9,0.5006]
[1765545962707,6.15308884,3250.4,3249.9,0.5006]
[1765545965419,3.07654442,3250.4,3249.9,0.5006]
[1765545965819,6.15308884,3250.4,3249.9,0.5006]
[1765545966223,3.07654442,3250.4,3249.9,0.5006]
[1765545966447,3.07654442,3250.4,3249.9,0.85857019]
[1765545966638,3.07654442,3250.4,3250.0,0.4996]
[1765545967350,6.15308884,3250.4,3250.0,0.4996]
[1765545967652,3.07654442,3250.4,3250.0,0.4996]
[1765545968048,6.15308884,3250.4,3250.0,0.4996]
[1765545968353,6.61948884,3250.4,3250.0,0.4996]
[1765545968743,0.4578,3250.1,3249.9,0.001]
[1765545968953,0.4664,3250.0,3249.9,0.001]
[1765545969142,0.6381,3250.0,3249.9,0.001]
[1765545970049,3.71502307,3250.0,3249.9,0.001]
[1765545971139,4.20102307,3250.0,3249.9,0.001]
[1765545971327,3.73462307,3250.0,3249.9,0.001]
[1765545971741,3.73462307,3250.0,3249.2,0.001]
[1765545971742,0.0898,3249.4,3249.2,0.001]
[1765545971941,0.58047529,3249.1,3248.6,0.001]
[1765545972157,0.4578,3248.7,3248.6,0.001]
[1765545972360,0.9448,3248.7,3248.6,0.001]
[1765545972573,7.61148327,3248.7,3248.6,0.001]
[1765545972758,8.3726316,3248.7,3248.6,0.001]
[1765545973635,8.8390316,3248.7,3248.6,0.001]
[1765545973828,11.91718593,3248.7,3248.6,0.001]
[1765545976430,6.23648195,3248.7,3248.6,0.001]
[1765545984273,36.63700538,3248.7,3248.6,0.001]
[1765545984568,36.60620758,3248.7,3248.6,0.001]
[1765545985269,6.60620758,3248.7,3248.6,0.001]
[1765545985471,36.60620758,3248.7,3248.6,0.001]
[1765545987551,35.33085858,3248.7,3248.6,0.001]
[1765545987762,31.58932658,3248.7,3248.6,0.001]
[1765545988462,20.52095858,3248.7,3248.6,0.001]
[1765545988665,8.27047395,3248.7,3248.6,0.001]
[1765545989461,6.23648195,3248.7,3248.6,0.001]
[1765545989861,9.10021995,3248.7,3248.6,0.001]
[1765545990086,8.81021995,3248.7,3248.6,0.001]
[1765545990294,9.58721995,3248.7,3248.6,0.001]
[1765545990879,31.98518195,3248.7,3248.6,0.001]
[1765545991880,32.53967395,3248.7,3248.6,0.001]
[1765545992454,23.44865195,3248.7,3248.6,0.001]
[1765545992672,23.21225095,3248.7,3248.6,0.001]
[1765545992878,24.33789095,3248.7,3248.6,0.001]
[1765545993275,24.11263195,3248.7,3248.6,0.001]
[1765545994955,6.06008195,3248.7,3248.6,0.001]
[1765545995155,26.23319875,3248.7,3248.6,0.001]
[1765545995355,26.20240095,3248.7,3248.6,0.001]
[1765545996287,27.06689695,3248.7,3248.6,0.001]
[1765545997257,27.37498995,3248.7,3248.6,0.001]
[1765545997787,27.05689695,3248.7,3248.6,0.001]
[1765545997960,25.27239495,3248.7,3248.6,0.001]
[1765545998161,25.28084795,3248.7,3248.6,0.001]
[1765545999192,26.68146295,3248.7,3248.6,0.001]
[1765545999586,25.67326695,3248.7,3248.6,0.001]
[1765546000188,26.60396395,3248.7,3248.6,0.001]
[1765546001262,26.69166095,3248.7,3248.6,0.001]
[1765546002391,26.99066995,3248.7,3248.6,0.001]
[1765546002689,26.68257695,3248.7,3248.6,0.001]
[1765546003190,14.55870695,3248.7,3248.6,0.001]
[1765546003490,8.69525895,3248.7,3248.6,0.001]
[1765546003888,7.81408195,3248.7,3248.6,0.001]
[1765546004871,8.10408195,3248.7,3248.6,0.001]
[1765546005261,7.61808195,3248.7,3248.6,0.001]
[1765546005488,8.10408195,3248.7,3248.6,0.001]
[1765546007896,13.79523376,3248.7,3248.6,0.001]
[1765546010569,13.50523376,3248.7,3248.6,0.001]
[1765546010892,13.50523376,3248.7,3248.6,0.4793]
[1765546010893,11.00243376,3248.7,3248.6,0.4793]
[1765546011485,11.00243376,3248.7,3248.6,0.001]
[1765546011682,11.00243376,3248.7,3248.6,0.4793]
[1765546011892,11.00119473,3248.7,3248.6,0.4793]
[1765546013467,11.00119473,3248.7,3248.6,0.001]
[1765546015297,11.26629473,3248.7,3248.6,0.001]
[1765546015499,31.52004273,3248.7,3248.6,0.001]
[1765546015704,29.74411836,3248.7,3248.6,0.001]
[1765546015998,35.52577836,3248.7,3248.6,0.001]
[1765546016163,34.44737436,3248.7,3248.6,0.001]
[1765546016801,35.13698036,3248.7,3248.6,0.001]
[1765546017697,0.405504,3248.2,3247.5,0.4583]
[1765546017868,5.68991278,3247.9,3247.6,0.4583]
[1765546018070,6.30750406,3247.9,3247.7,0.4593]
[1765546018299,6.88797935,3247.9,3247.8,0.4783]
[1765546018800,6.88797935,3247.9,3247.8,0.9366]
[1765546020198,9.96689187,3247.9,3247.8,0.9366]
[1765546020688,4.27697909,3247.9,3247.8,0.9366]
[1765546020894,3.65938781,3247.9,3247.8,0.9366]
[1765546022803,4.14538781,3247.9,3247.8,0.9366]
[1765546023804,3.65938781,3247.9,3247.8,0.9366]
[1765546024202,4.14538781,3247.9,3247.8,0.9366]
[1765546024993,3.07891252,3247.9,3247.8,0.9366]
[1765546025192,3.56491252,3247.9,3247.8,0.9366]
[1765546027395,4.14538781,3247.9,3247.8,0.972]
[1765546029276,3.65938781,3247.9,3247.8,0.972]
[1765546029487,4.14538781,3247.9,3247.8,0.972]
[1765546029907,7.94672102,3247.9,3247.7,0.001]
[1765546030381,4.8678085,3247.9,3247.8,0.4963]
[1765546030587,4.14538781,3247.9,3247.8,0.4963]
[1765546031180,4.14538781,3247.9,3247.8,0.99]
[1765546031379,4.14538781,3247.9,3247.8,0.4963]
[1765546031595,7.68390033,3247.9,3247.7,0.001]
[1765546033175,4.14538781,3247.9,3247.8,0.4963]
[1765546033610,3.65938781,3247.9,3247.8,0.4963]
[1765546033907,4.14538781,3247.9,3247.8,0.99]
[1765546037887,4.63148781,3247.9,3247.7,0.001]
[1765546038212,5.3539085,3247.9,3247.7,0.001]
[1765546040100,0.405504,3247.8,3247.7,0.001]
[1765546040628,0.889304,3247.8,3247.7,0.001]
[1765546040848,1.50057709,3247.8,3247.7,0.001]
[1765546041044,2.53475112,3247.8,3247.7,0.001]
[1765546041202,5.61375844,3247.8,3247.7,0.001]
[1765546041908,6.08195844,3247.8,3247.7,0.001]
[1765546045622,11.77563714,3247.8,3247.7,0.001]
[1765546045844,11.74483934,3247.8,3247.7,0.001]
[1765546046416,29.79925734,3247.8,3247.7,0.001]
[1765546046743,30.06054834,3247.8,3247.7,0.001]
[1765546046911,29.02343634,3247.8,3247.7,0.001]
[1765546047240,28.80698434,3247.8,3247.7,0.001]
[1765546047533,28.80646734,3247.8,3247.7,0.001]
[1765546048729,33.22748434,3247.8,3247.7,0.001]
[1765546049433,32.22748434,3247.8,3247.7,0.001]
[1765546050836,32.67143831,3247.8,3247.7,0.001]
[1765546051036,42.18879331,3247.8,3247.7,0.001]
[1765546051938,41.74483934,3247.8,3247.7,0.001]
[1765546052132,0.98597929,3247.2,3247.0,0.001]
[1765546052335,23.34484313,3247.1,3247.0,0.001]
[1765546052535,23.46757833,3247.1,3247.0,0.001]
[1765546052708,26.54724942,3247.1,3247.0,0.001]
[1765546052908,28.4931588,3247.1,3247.0,0.001]
[1765546053116,33.8786065,3247.1,3247.0,0.001]
[1765546053734,28.1849278,3247.1,3247.0,0.001]
[1765546053913,33.8786065,3247.1,3247.0,0.001]
[1765546054114,35.7723235,3247.1,3247.0,0.001]
[1765546055019,39.7723235,3247.1,3247.0,0.001]
[1765546055642,43.0103235,3247.1,3247.0,0.001]
[1765546055856,0.405504,3246.5,3246.4,0.001]
[1765546056155,7.0720827,3246.5,3246.4,0.001]
[1765546056309,7.65255799,3246.5,3246.4,0.001]
[1765546056637,7.77593576,3246.5,3246.4,0.001]
[1765546057141,4.18959731,3246.5,3246.4,0.4681]
[1765546057309,4.67559731,3246.5,3246.4,0.9623]
[1765546058019,4.18959731,3246.5,3246.4,0.9623]
[1765546058219,3.78409331,3246.5,3246.4,0.9623]
[1765546058518,4.14671554,3246.5,3246.4,0.9623]
[1765546060038,3.66071554,3246.5,3246.4,0.9623]
[1765546060220,4.14771554,3246.5,3246.4,0.9623]
[1765546062139,3.08024025,3246.5,3246.4,0.9623]
[1765546062444,3.56724025,3246.5,3246.4,0.9623]
[1765546069647,3.08024025,3246.5,3246.4,0.9623]
[1765546069950,3.56724025,3246.5,3246.4,0.9623]
[1765546073323,3.56724025,3246.5,3246.4,0.4681]
[1765546074028,3.56724025,3246.5,3246.4,0.9623]
[1765546074651,3.56724025,3246.5,3246.4,0.4681]
[1765546076854,3.56724025,3246.5,3246.4,0.9623]
[1765546081250,4.56917883,3246.5,3246.4,0.001]
[1765546082236,4.23197883,3246.5,3246.4,0.001]
[1765546084069,4.23197883,3246.5,3246.4,0.9623]
[1765546084271,3.56724025,3246.5,3246.4,0.9623]
[1765546086977,3.08024025,3246.5,3246.4,0.9623]
[1765546087271,3.56724025,3246.5,3246.4,0.9623]
[1765546090571,0.58047529,3246.7,3246.4,0.9623]
[1765546090766,0.487,3246.5,3246.4,0.001]
[1765546091282,0.487,3246.5,3246.4,0.9179]
[1765546093684,3.56724025,3246.5,3246.4,0.9179]
[1765546096389,6.16029698,3246.6,3246.4,0.9179]
[1765546096687,3.08014849,3246.6,3246.5,0.9169]
[1765546096863,3.56714849,3246.6,3246.5,0.4652]
[1765546100083,14.38584029,3246.5,3246.4,0.001]
[1765546100282,13.66043692,3246.5,3246.4,0.001]
[1765546100483,24.75340692,3246.5,3246.4,0.001]
[1765546100683,29.41332592,3246.5,3246.4,0.001]
[1765546100985,31.02501215,3246.5,3246.4,0.001]
[1765546101185,30.97911715,3246.5,3246.4,0.001]
[1765546101651,39.7648314,3246.5,3246.4,0.001]
[1765546102585,9.7648314,3246.5,3246.4,0.001]
[1765546102879,39.7648314,3246.5,3246.4,0.001]
[1765546103181,36.5208314,3246.5,3246.4,0.001]
[1765546104259,36.5208314,3246.5,3245.1,0.001]
[1765546104260,0.405504,3245.7,3245.1,0.001]
[1765546104453,0.405504,3245.5,3245.1,0.4842]
[1765546104861,0.405504,3245.5,3245.1,0.001]
[1765546105055,0.1956,3245.2,3245.1,0.001]
[1765546105384,0.6826,3245.2,3245.1,0.001]
[1765546105580,1.1484,3245.2,3245.1,0.001]
[1765546105755,4.95264187,3245.2,3245.1,0.001]
[1765546106354,5.35814587,3245.2,3245.1,0.001]
[1765546107986,24.46581379,3245.2,3245.1,0.001]
[1765546109090,28.02001879,3245.2,3245.1,0.001]
[1765546109490,0.405504,3244.9,3243.6,0.4832]
[1765546109694,0.58047529,3244.2,3243.6,0.4832]
[1765546109986,0.487,3244.1,3243.6,0.4832]
[1765546110357,1.04897529,3244.0,3243.3,0.1877]
[1765546110556,0.58047529,3244.0,3243.4,0.4832]
[1765546111170,0.487,3243.9,3243.4,0.4832]
[1765546111687,6.1657983,3243.7,3243.3,0.1877]
[1765546111889,6.1657983,3243.7,3243.3,0.6709]
[1765546112194,6.1657983,3243.7,3243.1,0.6765]
[1765546112195,0.77187403,3243.6,3243.1,0.6765]
[1765546112393,0.487,3243.5,3243.1,0.6765]
[1765546113267,0.487,3243.5,3241.8,7.30244854]
[1765546113268,0.405504,3243.1,3242.5,0.1933]
[1765546113462,0.58047529,3242.6,3242.4,0.4832]
[1765546113661,3.78034009,3242.5,3242.4,0.4832]
[1765546113869,4.36081538,3242.5,3242.4,0.4832]
[1765546114071,4.82671538,3242.5,3242.4,0.4832]
[1765546114277,4.82671538,3242.5,3240.9,0.1933]
[1765546114278,0.58047529,3242.4,3240.9,0.1933]
[1765546114497,1.35373314,3242.3,3241.0,0.03085467]
[1765546114701,1.35373314,3242.3,3240.9,3.27885245]
[1765546115017,0.58047529,3242.4,3242.2,0.6253]
[1765546115172,0.58047529,3242.4,3242.3,0.4554]
[1765546115375,1.06847529,3242.4,3242.3,0.4554]
[1765546115809,4.15261049,3242.4,3242.3,0.4554]
[1765546116215,4.15261049,3242.4,3242.3,0.9386]
[1765546116399,4.15261049,3242.4,3242.3,0.4554]
[1765546116607,7.47574569,3242.4,3242.0,0.1699]
[1765546116777,8.59461513,3242.4,3242.0,0.1699]
[1765546117116,0.4662,3242.1,3241.7,0.1933]
[1765546117286,1.06847529,3242.0,3241.4,0.1957]
[1765546117480,0.58047529,3242.3,3241.4,3.28072259]
[1765546117672,3.08432545,3242.2,3241.5,0.4918]
[1765546117880,0.488,3242.1,3241.5,3.57678716]
[1765546118222,3.08426244,3242.3,3241.5,3.57678356]
[1765546118507,0.405504,3242.8,3241.5,3.57678356]
[1765546118508,3.08384987,3242.7,3242.2,0.6823]
[1765546118713,3.08384987,3242.7,3242.2,0.1957]
[1765546118899,0.488,3242.6,3242.3,0.4918]
[1765546119408,6.16769974,3242.7,3242.5,0.4866]
[1765546119576,3.08384987,3242.7,3242.6,0.4866]
[1765546119776,3.08375477,3242.8,3242.6,0.4866]
[1765546120008,0.66555022,3242.7,3242.6,0.4866]
[1765546120405,0.90665022,3242.7,3242.3,0.4918]
[1765546120821,0.66555022,3242.7,3242.6,0.4866]
[1765546121683,6.16750954,3242.8,3242.6,0.9784]
[1765546121885,3.08375477,3242.8,3242.7,0.4866]
[1765546122089,3.0829942,3243.6,3242.7,0.9784]
[1765546122289,0.488,3243.8,3243.5,0.4866]
[1765546122701,0.488,3243.8,3243.7,0.4866]
[1765546123383,0.488,3243.8,3243.7,0.9784]
[1765546123804,3.57080411,3243.8,3243.7,0.9784]
[1765546125099,3.57080411,3243.8,3243.7,0.4866]
[1765546126313,3.08261405,3244.0,3243.7,0.4866]
[1765546126314,0.488,3244.0,3243.7,0.4866]
[1765546126497,0.488,3244.0,3243.9,0.4866]
[1765546128189,4.15108934,3244.0,3243.9,0.4866]
[1765546129013,0.58047529,3243.9,3243.7,0.4918]
[1765546129419,0.58047529,3243.9,3243.8,0.4866]
[1765546131404,3.66318437,3243.9,3243.8,0.4866]
[1765546131803,3.66318437,3243.9,3243.8,0.9784]
[1765546133107,3.5706537,3244.0,3243.8,0.9784]
[1765546133310,3.5706537,3244.0,3243.9,0.4866]
[1765546133697,3.082234,3244.4,3243.9,0.9784]
[1765546133909,0.58047529,3244.3,3244.0,0.4918]
[1765546134526,0.58047529,3244.3,3243.5,0.4918]
[1765546134527,0.2369,3244.1,3243.5,0.4918]
[1765546135700,6.1652281,3244.0,3243.5,0.4918]
[1765546136441,6.1652281,3244.0,3243.9,0.4866]
[1765546136442,3.66308934,3244.0,3243.9,0.4866]
[1765546138216,3.66308934,3244.0,3243.9,0.9784]
[1765546140731,7.42026438,3244.0,3243.5,0.4918]
[1765546141043,7.65716438,3244.0,3243.5,0.4918]
[1765546142140,7.65716438,3244.0,3243.9,0.4866]
[1765546142141,3.66308934,3244.0,3243.9,0.4866]
[1765546142321,3.08255274,3244.1,3243.9,0.4866]
[1765546142517,3.08255274,3244.1,3244.0,0.4918]
[1765546142822,3.08255274,3244.1,3244.0,0.9784]
[1765546144244,0.58047529,3244.2,3244.0,0.9784]
[1765546144427,0.58047529,3244.2,3244.1,0.4918]
[1765546144607,3.08234091,3244.3,3244.1,1.1741]
[1765546144813,3.08228242,3244.4,3244.2,0.4866]
[1765546145030,3.08228242,3244.4,3244.3,0.4866]
[1765546145543,6.16456484,3244.4,3244.1,0.1957]
[1765546146151,6.74456331,3244.6,3244.1,0.1957]
[1765546146458,10.96275271,3244.6,3244.1,0.1957]
[1765546146640,11.42915271,3244.6,3244.1,0.1957]
[1765546147314,10.96275271,3244.6,3243.9,0.1805]
[1765546147514,0.4581,3244.5,3243.9,0.1805]
[1765546147833,0.4581,3244.5,3243.9,0.6468]
[1765546148029,7.8807087,3244.6,3243.9,0.6468]
[1765546148234,6.164468,3244.4,3244.0,0.4663]
[1765546151462,6.164468,3244.4,3243.7,0.4663]
[1765546151617,0.4581,3244.3,3243.7,0.4663]
[1765546151959,6.77193896,3244.3,3243.3,0.1957]
[1765546152156,0.4581,3244.2,3243.3,0.662]
[1765546152457,6.1652281,3244.0,3243.3,0.662]
[1765546152645,6.1652281,3244.0,3243.4,0.4663]
[1765546152956,3.80554579,3244.1,3243.9,0.484]
[1765546153160,3.80554579,3244.1,3244.0,0.484]
[1765546153348,3.08254189,3244.1,3244.0,0.484]
[1765546154146,3.57043927,3244.2,3244.0,0.9503]
[1765546154361,4.15091456,3244.2,3244.1,0.6645]
[1765546154563,4.15091456,3244.2,3244.1,1.1308]
[1765546155881,4.87423942,3244.2,3244.1,1.1308]
[1765546157346,3.57043927,3244.2,3244.1,1.1308]
[1765546158043,3.57043927,3244.2,3244.1,0.484]
[1765546158848,6.65287854,3244.2,3243.9,0.1805]
[1765546159047,6.65287854,3244.2,3243.9,0.6468]
[1765546159246,0.4526,3244.0,3243.6,0.4663]
[1765546160467,6.90337854,3244.2,3243.6,0.4663]
[1765546160668,7.90194943,3244.2,3243.6,0.4663]
[1765546162866,7.65144943,3244.2,3243.6,0.4663]
[1765546166077,10.7338887,3244.2,3243.6,0.4663]
[1765546166373,7.65144943,3244.2,3243.6,0.4663]
[1765546166852,7.65144943,3244.2,3243.3,0.6608]
[1765546167049,8.11554943,3244.2,3243.3,0.6608]
[1765546167344,8.11554943,3244.2,3243.4,0.4651]
[1765546168886,7.65144943,3244.2,3243.4,3.54826578]
[1765546169173,6.65287854,3244.2,3243.4,4.23099827]
[1765546169379,6.65287854,3244.2,3243.5,0.4651]
[1765546173362,6.65287854,3244.2,3243.3,0.1957]
[1765546173563,0.4641,3244.1,3243.4,0.4651]
[1765546176289,6.1652281,3244.0,3243.4,0.4651]
[1765546188992,3.08261405,3244.0,3243.4,0.4651]
[1765546189190,6.1652281,3244.0,3243.4,0.4651]
[1765546189364,3.08261405,3244.0,3243.4,3.54824915]
[1765546189564,3.08261405,3244.0,3243.5,0.4762]
[1765546189776,3.08261405,3244.0,3243.9,0.472]
[1765546189985,3.08256539,3244.1,3243.9,0.472]
[1765546190203,3.08256539,3244.1,3243.9,0.9482]
[1765546190366,3.08256539,3244.1,3244.0,0.472]
[1765546192195,0.58047529,3244.0,3243.1,0.1852]
[1765546192393,1.05997529,3244.0,3243.1,0.1852]
[1765546192579,0.1557,3243.9,3243.1,0.1852]
[1765546192773,0.487,3243.8,3243.1,0.6614]
[1765546192986,0.4795,3243.7,3243.1,0.6614]
[1765546194566,6.1659884,3243.6,3243.1,0.6614]
[1765546194762,6.1659884,3243.6,3243.2,0.4762]
[1765546195569,6.6454884,3243.6,3243.2,0.4762]
[1765546195776,0.487,3243.8,3243.5,0.472]
[1765546195990,0.487,3243.8,3243.7,0.472]
[1765546196383,3.56987814,3243.8,3243.7,0.472]
[1765546196910,6.86285628,3243.8,3243.3,0.4762]
[1765546197693,10.42253442,3243.8,3243.3,0.4762]
[1765546197902,1.53884344,3243.7,3243.1,0.6614]
[1765546198767,6.1659884,3243.6,3243.1,0.6614]
[1765546199174,6.1659884,3243.6,3243.2,0.4762]
[1765546200190,6.1659884,3243.6,3242.2,1.12162449]
[1765546200191,0.2101,3243.3,3242.2,1.12162449]
[1765546200399,0.487,3243.4,3242.5,0.4762]
[1765546200573,1.56632579,3243.4,3242.5,0.4762]
[1765546201111,6.16655874,3243.3,3242.5,0.4762]
[1765546201317,0.1979,3243.9,3243.3,0.472]
[1765546201475,0.58047529,3243.7,3242.7,5.70455346]
[1765546201804,0.58047529,3243.7,3242.8,0.57045535]
[1765546202105,1.05997529,3243.7,3242.8,1.04665535]
[1765546202576,1.05997529,3243.7,3242.9,0.4762]
[1765546202777,1.05997529,3243.7,3242.9,0.9632]
[1765546203098,0.58047529,3243.5,3243.0,0.4762]
[1765546203302,0.58047529,3243.5,3243.1,0.1852]
[1765546203479,0.58047529,3243.5,3243.4,0.472]
[1765546204203,3.08286361,3243.8,3243.4,0.9482]
[1765546204407,6.16572722,3243.8,3243.5,0.472]
[1765546204581,7.139267,3243.8,3243.5,0.472]
[1765546204786,7.139267,3243.8,3243.5,0.9482]
[1765546205612,3.08280411,3243.8,3243.7,0.472]
[1765546206112,3.08280411,3243.8,3243.7,0.9482]
[1765546207712,10.28853238,3244.1,3243.7,0.472]
[1765546208081,0.4605,3244.0,3243.4,0.4598]
[1765546208447,1.53805324,3244.0,3243.4,0.4598]
[1765546208705,9.82803238,3244.1,3243.4,0.4598]
[1765546208913,6.74551335,3244.1,3243.4,0.4598]
[1765546209293,10.28853238,3244.1,3243.4,0.4598]
[1765546209508,0.4605,3244.0,3243.2,0.487]
[1765546209820,6.16541816,3243.9,3243.2,0.9468]
[1765546210179,3.08270908,3243.9,3243.8,0.4539]